[Event "53rd Mar Del Plata Open 2024"]
[Site "Mar Del Plata"]
[Date "2024.03.27"]
[Round "5.4"]
[White "Spata, German"]
[Black "Aranda, Juan Manuel"]
[Result "1-0"]
[ECO "A41"]
[WhiteElo "2421"]
[BlackElo "2102"]
[Annotator "TA"]
[PlyCount "139"]
[EventDate "2024.03.23"]
[EventType "swiss"]
[EventCountry "ARG"]
[SourceTitle "playchess.com"]
[Source "ChessBase"]
[SourceQuality "1"]
[TimeControl "5400+30"]

{[%evp 49,139,6,11,15,8,7,45,27,14,24,93,57,74,65,70,-43,-65,-48,114,109,140,0,149,110,204,208,197,172,181,179,218,212,218,214,208,205,383,380,563,524,564,562,554,541,724,704,6079,5197,1319,0,1065,137,137,137,137,104,220,220,159,159,5189,1542,5717,5717,5710,5652,5644,5621,5404,5431,5518,5410,5092,4775,4775,4775,29970,29970,29969,29970,29967,5743,29981,29982,29982,29983,29983,29984,29984,29985,29985,29986]} 1. d4 {[%emt 0:06:49]} d6 {[%emt 0:00:24]} 2. Nf3 {[%emt 0:02:27]} g6 {[%emt 0:00:21]} 3. g3 {[%emt 0:01:29]} Bg7 {[%emt 0:01:08]} 4. Bg2 {[%emt 0:00:16]} Nc6 {[%emt 0:03:32]} 5. d5 {[%emt 0:02:09]} Ne5 {[%emt 0:01:38]} 6. Nd4 {[%emt 0:01:13] A41: Moderne Verteidigung gegen 1.d4 (mit oder ohne späterem e2-e4 und Sf6).} Nh6 {[%emt 0:06:13]} 7. O-O {[%emt 0:02:22]} O-O {[%emt 0:00:56]} 8. h3 $146 {[%emt 0:06:05]} ({Predecessor:} 8. Nc3 Bd7 9. a4 c5 10. Nb3 Qc8 11. Bg5 f6 12. Bc1 a6 13. a5 Nhf7 14. Na4 {½-½ Rottstaedt,W (2133)-Strozewski,F (2028) Ruhrgebiet Daehne Cup 2002 (1)}) 8... Nf5 {[%emt 0:07:45]} 9. Nb3 {[%emt 0:04:44]} c5 {[%emt 0:03:56]} 10. dxc6 {[%emt 0:01:02]} Nxc6 {[%emt 0:03:21]} 11. c3 {[%emt 0:06:03]} a5 {[%emt 0:00:49]} 12. e4 {[%emt 0:08:26]} a4 {[%emt 0:01:34]} 13. N3d2 {[%emt 0:04:06]} Nh6 {[%emt 0:00:07]} 14. Na3 {[%emt 0:01:41]} f5 {[%emt 0:02:12]} 15. exf5 {[%emt 0:06:32]} Nxf5 {[%emt 0:00:35]} 16. Ndc4 {[%emt 0:01:16]} Kh8 {[%emt 0:03:48]} 17. Qd3 {[%emt 0:03:01]} Be6 {[%emt 0:05:44]} 18. Rd1 {[%emt 0:04:20]} Rc8 {[%emt 0:01:43]} 19. Ne3 {[%emt 0:04:24]} Qd7 {[%emt 0:08:24]} 20. Nd5 {[%emt 0:04:03]} Ne5 {[%emt 0:02:02]} 21. Qe2 {[%emt 0:01:24]} Rc5 {[%emt 0:02:37]} 22. Nc2 {[%emt 0:05:32]} Bxd5 {[%emt 0:05:10]} 23. Rxd5 {[%emt 0:00:50]} Rxd5 {[%emt 0:12:49]} 24. Bxd5 {[%emt 0:00:04]} b5 {[%emt 0:01:12]} 25. Kh2 {[%emt 0:02:58]} e6 {[%emt 0:01:39]} 26. Bg2 {[%emt 0:00:07]} Nc4 {[%emt 0:00:32]} 27. b3 {[%emt 0:00:48]} Nb6 {[%emt 0:02:00]} 28. Qd3 {[%emt 0:02:57]} Qc7 {[%emt 0:01:26]} 29. Bd2 {[%emt 0:01:58]} (29. Qxb5 $2 Qxc3 30. Qe2 Rc8 $19 (30... axb3 31. axb3 Be5 32. Bf4 $17) (30... Nd4 31. Nxd4 Qxa1 32. Nxe6 $17)) 29... d5 {[%emt 0:00:41]} (29... Nd7 $11) 30. Re1 {[%emt 0:03:55]} axb3 {[%emt 0:01:56]} 31. axb3 {[%emt 0:00:15]} Nd7 {[%emt 0:04:12]} 32. Kg1 {[%emt 0:02:56]} (32. Rxe6 Nc5 33. Qxd5 (33. Qxb5 $2 Nxe6 34. Qxd5 Bxc3 $19) (33. Bf4 $2 Qc8 $19) 33... Nxe6 34. Qxe6 Bxc3 $17) (32. Qxb5 $14 Rb8 (32... Bxc3 33. Bxc3+ Qxc3 34. Qxd7 $16) 33. Qd3) 32... Nc5 $1 $15 {[%emt 0:02:01]} 33. Qxb5 {[%emt 0:00:39]} Rb8 $2 {[%emt 0:00:19]} (33... Nd6 $1 $15 {bleibt weiter vorne.} 34. Qe2 (34. Qb4 $2 Rxf2 35. Be3 Nd3 $19) 34... Nde4 35. Bxe4 Nxe4) 34. Qe2 $16 {[%emt 0:00:25]} Rxb3 {[%emt 0:00:58] [#]} 35. Bf4 {[%emt 0:05:49]} (35. Bxd5 $1 $16 Rb2 36. Bxe6 (36. Bf4 Qb6 $11) 36... Nxg3 37. Qf3) 35... e5 {[%emt 0:02:13]} (35... Qf7 $11 {bleibt in der Remisbreite.}) 36. Nb4 {[%emt 0:00:49]} (36. Bxe5 $6 Bxe5 37. Qxe5+ Qxe5 38. Rxe5 Rxc3 $11) 36... Nd7 {[%emt 0:04:14]} (36... Qd6 $16) 37. Nxd5 $18 {[%emt 0:00:25]} Qb8 {[%emt 0:01:53]} 38. Bd2 {[%emt 0:00:30]} Rb2 {[%emt 0:00:27]} 39. Rd1 {[%emt 0:02:34]} h6 {[%emt 0:00:04]} 40. Ne3 {[%emt 0:00:22]} Qb3 {[%emt 0:01:50]} 41. Nxf5 {[%emt 0:01:55]} gxf5 {[%emt 0:00:12]} 42. Qe1 {[%emt 0:00:41]} e4 $2 {[%emt 0:03:02]} (42... Nf6 43. g4 Bf8) 43. Bc1 $18 {[%emt 0:00:25]} Rb1 {[%emt 0:01:52]} (43... e3 $142 44. Bxb2 (44. Rxd7 exf2+ $17) (44. fxe3 Rxg2+ 45. Kxg2 Qc2+ 46. Qd2 Qe4+ 47. Kg1 Qf3 $18) 44... exf2+ 45. Kxf2 Qxb2+ 46. Kg1 Ne5) 44. Rxd7 $18 {[%emt 0:00:41]} Qc2 {[%emt 0:01:08]} 45. Rd1 {[%emt 0:00:56]} Bxc3 {[%emt 0:00:11] [#]} 46. Qf1 $1 {[%emt 0:00:19]} Kh7 {[%emt 0:00:23]} 47. Kh2 {[%emt 0:00:38]} Bb2 {[%emt 0:01:29]} 48. Rd7+ {[%emt 0:00:32]} Bg7 {[%emt 0:00:19]} 49. Rd1 {[%emt 0:00:27]} Bb2 $1 {[%emt 0:00:07]} 50. Bxb2 $2 {[%emt 0:00:29]} (50. Qa6 $18 {bietet bessere Gewinnchancen. Droht Matt per Rd7+.} Qxd1 51. Qxh6+ (51. Bxh6 $2 Qg1#) (51. Qb7+ Kg6 $11) 51... Kg8 52. Qe6+ Kg7 53. Bxb2+ Rxb2 54. Qe5+ (54. Qxf5 Qd4 $11) 54... Kg6 55. Qxb2) 50... Qxd1 $16 {[%emt 0:00:28]} 51. Qxd1 {[%emt 0:00:11]} Rxd1 {[%emt 0:00:01]} 52. Ba3 {[%emt 0:00:45]} Rd5 {[%emt 0:00:33]} (52... h5 $16 {ist eine bessere Verteidigung.} 53. h4 Kg7) 53. Bc1 $18 {[%emt 0:00:17]} Kg6 {[%emt 0:00:57]} 54. g4 {[%emt 0:00:07]} Rd1 $2 {[%emt 0:00:41]} (54... h5 $16 55. gxf5+ Kxf5) 55. gxf5+ $18 {[%emt 0:00:19]} Kxf5 {[%emt 0:00:04]} 56. Bxh6 {[%emt 0:00:26]} Re1 {[%emt 0:00:22]} 57. Be3 {[%emt 0:00:44]} Ra1 {[%emt 0:00:48]} 58. Kg3 {[%emt 0:00:52]} Ra8 {[%emt 0:00:11]} 59. h4 {[%emt 0:00:19]} Rf8 {[%emt 0:00:42]} 60. Bh3+ {[%emt 0:00:14]} Ke5 {[%emt 0:00:12]} 61. Bg4 {[%emt 0:00:32]} Ra8 {[%emt 0:00:31]} 62. h5 {[%emt 0:00:39]} Ra1 {[%emt 0:00:17]} 63. Kh4 {[%emt 0:00:34]} Ra8 {[%emt 0:00:35]} 64. h6 {[%emt 0:00:21]} Kf6 {[%emt 0:00:48]} 65. Bh5 {[%emt 0:01:01]} Kf5 {[%emt 0:00:45]} 66. Bd4 {[%emt 0:00:33]} Kf4 {[%emt 0:01:52]} 67. h7 {[%emt 0:00:28]} Rd8 {[%emt 0:01:05]} 68. h8=Q Rxh8 69. Bxh8 e3 70. f3 1-0

[Event "53rd Mar Del Plata Open 2024"]
[Site "Mar Del Plata"]
[Date "2024.03.27"]
[Round "5.5"]
[White "Castro Salgado, Pablo"]
[Black "Villegas, Franco"]
[Result "0-1"]
[ECO "D37"]
[WhiteElo "2164"]
[BlackElo "2328"]
[Annotator "RC"]
[PlyCount "77"]
[EventDate "2024.03.23"]
[EventType "swiss"]
[EventCountry "ARG"]
[SourceTitle "playchess.com"]
[Source "ChessBase"]
[SourceQuality "1"]
[TimeControl "5400+30"]

1. d4 {[%emt 0:00:34]} Nf6 {[%emt 0:01:45]} 2. c4 {[%emt 0:00:11]} e6 {[%emt 0:00:21]} 3. Nf3 {[%emt 0:00:08]} d5 {[%emt 0:00:28]} 4. Nc3 {[%emt 0:00:11]} Nbd7 {[%emt 0:00:28]} 5. Bf4 {[%emt 0:02:02]} c6 {[%emt 0:01:23]} 6. e3 {[%emt 0:02:13]} Bb4 {[%emt 0:01:26]} 7. Nd2 {[%emt 0:05:41]} O-O {[%emt 0:02:31]} 8. Rc1 {[%emt 0:03:14]} Qe7 {[%emt 0:03:42]} 9. Be2 {[%emt 0:07:05]} e5 {[%emt 0:09:08]} 10. dxe5 {[%emt 0:01:30]} Nxe5 {[%emt 0:00:06]} 11. O-O {[%emt 0:03:01]} Rd8 {[%emt 0:14:43]} 12. Qc2 {[%emt 0:16:45]} Ng6 {[%emt 0:02:13]} 13. Bd3 {[%emt 0:09:56]} d4 {[%emt 0:16:12]} 14. Nce4 {[%emt 0:09:01]} Bxd2 {[%emt 0:00:33]} 15. Nxd2 {[%emt 0:02:12]} dxe3 {[%emt 0:00:20]} 16. Bxe3 {[%emt 0:01:09]} Ng4 {[%emt 0:00:14]} 17. Bxg6 {[%emt 0:01:27]} hxg6 {[%emt 0:00:17]} 18. Bf4 {[%emt 0:01:53]} Bf5 {[%emt 0:01:29]} 19. Qc3 {[%emt 0:08:40]} Rd3 {[%emt 0:01:43]} 20. Rce1 {[%emt 0:01:57]} Qh4 {[%emt 0:08:11]} 21. Nf3 {[%emt 0:02:02]} Rxc3 {[%emt 0:00:33]} 22. Nxh4 {[%emt 0:00:07]} Rxc4 {[%emt 0:00:03]} 23. Nxf5 {[%emt 0:00:10]} gxf5 {[%emt 0:00:04]} 24. Bd2 {[%emt 0:02:03]} Nf6 {[%emt 0:00:38]} 25. Re7 {[%emt 0:02:43]} b6 {[%emt 0:00:18]} 26. Rfe1 {[%emt 0:06:17]} Rc2 {[%emt 0:02:41]} 27. Bc3 {[%emt 0:02:07]} Nd5 {[%emt 0:00:12]} 28. Rb7 {[%emt 0:00:10]} b5 {[%emt 0:01:40]} 29. h4 {[%emt 0:04:59]} a5 {[%emt 0:01:01]} 30. Bd4 {[%emt 0:01:25]} Nf4 {[%emt 0:01:15]} 31. Kf1 {[%emt 0:04:00]} Rc4 {[%emt 0:04:22]} 32. Be5 {[%emt 0:00:46]} Nd3 {[%emt 0:02:31]} 33. Re3 {[%emt 0:00:20]} Rd8 {[%emt 0:05:04]} 34. g3 {[%emt 0:00:52]} Rc2 {[%emt 0:00:48]} 35. Bc3 {[%emt 0:00:24]} Nxf2 {[%emt 0:02:21]} 36. Ree7 {[%emt 0:00:34]} Rd1+ {[%emt 0:01:07]} 37. Be1 {[%emt 0:00:36]} Ne4 {[%emt 0:00:05]} 38. Re8+ {[%emt 0:00:28]} Kh7 {[%emt 0:00:04]} 39. Re6 {[%emt 0:01:07]} 0-1

[Event "53rd Mar Del Plata Open 2024"]
[Site "Mar Del Plata"]
[Date "2024.03.27"]
[Round "5.6"]
[White "Coro, Lucas"]
[Black "Pinus, Ruben"]
[Result "1-0"]
[ECO "A04"]
[WhiteElo "2316"]
[BlackElo "2072"]
[Annotator "RC"]
[PlyCount "79"]
[EventDate "2024.03.23"]
[EventType "swiss"]
[EventCountry "ARG"]
[SourceTitle "playchess.com"]
[Source "ChessBase"]
[SourceQuality "1"]
[TimeControl "5400+30"]

1. Nf3 {[%emt 0:04:36]} c5 {[%emt 0:00:11]} 2. g3 {[%emt 0:03:00]} Nc6 {[%emt 0:00:21]} 3. Bg2 {[%emt 0:01:17]} g6 {[%emt 0:00:14]} 4. O-O {[%emt 0:00:41]} Bg7 {[%emt 0:00:07]} 5. d3 {[%emt 0:03:36]} d6 {[%emt 0:01:00]} 6. e4 {[%emt 0:01:42]} e5 {[%emt 0:13:48]} 7. a3 {[%emt 0:01:08]} Nge7 {[%emt 0:02:00]} 8. c3 {[%emt 0:00:18]} O-O {[%emt 0:05:32]} 9. b4 {[%emt 0:00:18]} h6 {[%emt 0:13:58]} 10. Nbd2 {[%emt 0:12:57]} Be6 {[%emt 0:04:17]} 11. Bb2 {[%emt 0:03:22]} Rc8 {[%emt 0:07:35]} 12. Re1 {[%emt 0:05:14]} b6 {[%emt 0:05:35]} 13. b5 {[%emt 0:14:12]} Na5 {[%emt 0:00:25]} 14. c4 {[%emt 0:01:10]} f5 {[%emt 0:02:39]} 15. exf5 {[%emt 0:01:46]} gxf5 {[%emt 0:02:13]} 16. Nh4 {[%emt 0:05:11]} Qd7 {[%emt 0:06:36]} 17. Bc3 {[%emt 0:01:52]} f4 {[%emt 0:08:05]} 18. Bxa5 {[%emt 0:17:39]} bxa5 {[%emt 0:00:45]} 19. Ne4 {[%emt 0:00:07]} d5 {[%emt 0:05:06]} 20. cxd5 {[%emt 0:00:30]} Bxd5 {[%emt 0:02:02]} 21. Rc1 {[%emt 0:01:17]} fxg3 {[%emt 0:03:33]} 22. hxg3 {[%emt 0:00:25]} Bxe4 {[%emt 0:04:41]} 23. Bxe4 {[%emt 0:00:19]} Qd4 {[%emt 0:00:21]} 24. Qe2 {[%emt 0:01:01]} Rf7 {[%emt 0:02:25]} 25. Qa2 {[%emt 0:03:59]} Rcf8 {[%emt 0:01:17]} 26. Re2 {[%emt 0:00:13]} Kh8 {[%emt 0:00:22]} 27. Kg2 {[%emt 0:00:38]} Bf6 {[%emt 0:02:20]} 28. Nf3 {[%emt 0:00:20]} Qd6 {[%emt 0:00:07]} 29. Qc4 {[%emt 0:00:35]} Ng8 {[%emt 0:02:16]} 30. a4 {[%emt 0:02:35]} Rc7 {[%emt 0:01:44]} 31. Rh1 {[%emt 0:00:38]} Bg7 {[%emt 0:00:23]} 32. Nh4 {[%emt 0:02:14]} Ne7 {[%emt 0:00:11]} 33. Qc1 {[%emt 0:04:29]} c4 {[%emt 0:01:49]} 34. dxc4 {[%emt 0:00:37]} Qd4 {[%emt 0:00:06]} 35. Nf3 {[%emt 0:00:52]} Qxc4 {[%emt 0:02:55]} 36. Rxh6+ {[%emt 0:00:19]} Kg8 {[%emt 0:00:08]} 37. Bh7+ {[%emt 0:00:10]} Kf7 {[%emt 0:00:18]} 38. Rc2 {[%emt 0:00:52]} Bxh6 {[%emt 0:01:32]} 39. Qxh6 {[%emt 0:00:28]} Qe6 {[%emt 0:00:24]} 40. Ng5+ {[%emt 0:00:05]} 1-0

[Event "53rd Mar Del Plata Open 2024"]
[Site "Mar Del Plata"]
[Date "2024.03.27"]
[Round "5.7"]
[White "Unhold, Valentin"]
[Black "Romero Barreto, Jaime Jose"]
[Result "0-1"]
[ECO "E92"]
[WhiteElo "2146"]
[BlackElo "2320"]
[Annotator "RC"]
[PlyCount "62"]
[EventDate "2024.03.23"]
[EventType "swiss"]
[EventCountry "ARG"]
[SourceTitle "playchess.com"]
[Source "ChessBase"]
[SourceQuality "1"]
[TimeControl "5400+30"]

1. d4 {[%emt 0:00:03]} d6 {[%emt 0:01:40]} 2. Nf3 {[%emt 0:00:10]} Nf6 {[%emt 0:05:31]} 3. c4 {[%emt 0:00:09]} g6 {[%emt 0:00:52]} 4. Nc3 {[%emt 0:00:08]} Bg7 {[%emt 0:00:05]} 5. e4 {[%emt 0:00:09]} O-O {[%emt 0:02:57]} 6. Be2 {[%emt 0:00:12]} e5 {[%emt 0:08:39]} 7. Be3 {[%emt 0:00:39]} Nc6 {[%emt 0:10:33]} 8. d5 {[%emt 0:00:17]} Ne7 {[%emt 0:00:06]} 9. Nd2 {[%emt 0:00:09]} Ne8 {[%emt 0:02:03]} 10. b4 {[%emt 0:04:47]} f5 {[%emt 0:03:36]} 11. f3 {[%emt 0:00:34]} Kh8 {[%emt 0:00:54]} 12. c5 {[%emt 0:22:41]} a5 {[%emt 0:05:11]} 13. cxd6 {[%emt 0:21:32]} Nxd6 {[%emt 0:01:46]} 14. b5 {[%emt 0:06:27]} fxe4 {[%emt 0:00:36]} 15. Ndxe4 {[%emt 0:05:15]} Ndf5 {[%emt 0:13:31]} 16. Bf2 {[%emt 0:01:38]} Nd4 {[%emt 0:00:08]} 17. Bc4 {[%emt 0:01:17]} b6 {[%emt 0:02:29]} 18. O-O {[%emt 0:04:58]} Bb7 {[%emt 0:05:37]} 19. f4 {[%emt 0:16:07]} Nxd5 {[%emt 0:03:46]} 20. fxe5 {[%emt 0:00:24]} Nxc3 {[%emt 0:00:08]} 21. Nxc3 {[%emt 0:00:24]} Qg5 {[%emt 0:02:01]} 22. Nd5 {[%emt 0:02:40]} Nf3+ {[%emt 0:09:44]} 23. Kh1 {[%emt 0:00:12]} Nxh2 {[%emt 0:00:14]} 24. Kxh2 {[%emt 0:01:07]} Bxe5+ {[%emt 0:05:52]} 25. Kg1 {[%emt 0:00:13]} Rad8 {[%emt 0:00:09]} 26. Be3 {[%emt 0:06:27]} Qg3 {[%emt 0:02:14]} 27. Rf3 {[%emt 0:01:07]} Rxf3 {[%emt 0:01:11]} 28. Qxf3 {[%emt 0:00:17]} Qxf3 {[%emt 0:00:08]} 29. gxf3 {[%emt 0:00:06]} Bxa1 {[%emt 0:00:03]} 30. Nxc7 {[%emt 0:00:35]} Bd4 {[%emt 0:00:09]} 31. Nd5 {[%emt 0:00:36]} Rxd5 {[%emt 0:00:09]} 0-1

[Event "53rd Mar Del Plata Open 2024"]
[Site "Mar Del Plata"]
[Date "2024.03.26"]
[Round "5.8"]
[White "Needleman, Alejandro"]
[Black "Espinoza Palomino, Willyam"]
[Result "1/2-1/2"]
[ECO "D13"]
[WhiteElo "2215"]
[BlackElo "2400"]
[Annotator "TA"]
[PlyCount "63"]
[EventDate "2024.03.23"]
[EventType "swiss"]
[EventCountry "ARG"]
[SourceTitle "playchess.com"]
[Source "ChessBase"]
[SourceQuality "1"]
[TimeControl "5400+30"]

{[%evp 19,63,0,0,-8,-7,-10,0,-12,-8,-26,-17,-25,-18,-32,-35,-33,0,-4,14,0,0,0,0,0,6,10,13,0,0,0,0,0,0,0,5,0,0,0,0,0,0,0,0,0,0,0]} 1. d4 {[%emt 0:00:18]} d5 {[%emt 0:00:16]} 2. Nf3 {[%emt 0:00:34]} Nf6 {[%emt 0:00:13]} 3. c4 {[%emt 0:02:26]} c6 {[%emt 0:00:26]} 4. cxd5 {[%emt 0:03:30]} cxd5 {[%emt 0:00:05]} 5. Nc3 {[%emt 0:00:10]} Nc6 {[%emt 0:03:04]} 6. g3 {[%emt 0:07:03]} Bf5 {[%emt 0:10:56]} 7. Bg2 {[%emt 0:02:07]} e6 {[%emt 0:00:45]} 8. O-O {[%emt 0:02:27]} Bd6 {[%emt 0:01:58]} 9. Bf4 {[%emt 0:04:09]} O-O {[%emt 0:24:31]} 10. Bxd6 {[%emt 0:11:19]} Qxd6 {[%emt 0:00:04]} 11. e3 {[%emt 0:00:43]} h6 {[%emt 0:01:18]} 12. Qe2 {[%emt 0:01:17]} Ne4 {[%emt 0:15:52]} 13. Rac1 {[%emt 0:01:12]} Rfc8 {[%emt 0:13:54]} 14. Rfd1 {[%emt 0:06:06]} Nxc3 {[%emt 0:07:14]} 15. Rxc3 {[%emt 0:04:03]} Nb4 {[%emt 0:01:33]} 16. Rxc8+ {[%emt 0:01:37]} Rxc8 {[%emt 0:00:02]} 17. a3 {[%emt 0:00:11]} Nc6 {[%emt 0:12:27]} 18. Rc1 {[%emt 0:00:10] The position is equal.} Bg4 {[%emt 0:02:43]} 19. Qd2 {[%emt 0:01:43]} Bxf3 {[%emt 0:01:01]} 20. Bxf3 {[%emt 0:00:12]} Ne7 {[%emt 0:00:11]} 21. h4 {[%emt 0:02:53]} Rxc1+ {[%emt 0:00:08]} 22. Qxc1 $11 {[%emt 0:00:04][%mdl 4096] Endgame. KQB-KQN} Qc6 {[%emt 0:00:27]} 23. Qd2 {[%emt 0:01:11]} b6 {[%emt 0:00:36]} 24. Bd1 {[%emt 0:00:51]} Qb5 {[%emt 0:01:38]} 25. Bc2 {[%emt 0:01:05]} Kf8 {[%emt 0:00:18]} (25... Qxb2 $2 {too greedy.} 26. Bh7+ Kxh7 27. Qxb2 $18) 26. Bd3 {[%emt 0:00:12]} Qc6 {[%emt 0:00:19]} 27. Kh2 {[%emt 0:01:41]} Nc8 {[%emt 0:00:14]} 28. g4 {[%emt 0:01:43]} Nd6 {[%emt 0:00:08]} 29. g5 {[%emt 0:02:49]} hxg5 {[%emt 0:00:05]} 30. hxg5 {[%emt 0:00:05]} Ke7 {[%emt 0:00:22]} 31. Kg1 {[%emt 0:02:43]} Qc8 {[%emt 0:00:12]} 32. Kg2 {[%emt 0:39:56] Weighted Error Value: White=0.05 (flawless) /Black=0.04 (flawless) .  Inaccurate:     	---       	Black=1      OK:         	White=5     	Black=6} 1/2-1/2

[Event "53rd Mar Del Plata Open 2024"]
[Site "Mar Del Plata"]
[Date "2024.03.27"]
[Round "5.9"]
[White "Campos, Maria Jose"]
[Black "Kiselev, Vitalii"]
[Result "0-1"]
[ECO "A13"]
[WhiteElo "2224"]
[BlackElo "2519"]
[Annotator "TA"]
[PlyCount "97"]
[EventDate "2024.03.23"]
[EventType "swiss"]
[EventCountry "ARG"]
[SourceTitle "playchess.com"]
[Source "ChessBase"]
[SourceQuality "1"]
[TimeControl "5400+30"]

{[%evp 9,97,18,18,13,14,6,0,-60,-32,-31,-22,-39,-28,-35,-42,-79,-63,-78,-85,-127,-118,-136,-136,-139,-142,-139,-140,-183,-135,-188,-181,-183,-179,-195,-160,-240,-240,-420,-420,-475,-261,-319,-306,-327,-320,-317,-319,-318,-281,-358,-365,-375,-374,-370,-340,-373,-364,-465,-395,-502,-466,-438,-415,-596,-583,-684,-615,-547,-534,-1065,-741,-1164,-1072,-1573,-1524,-5189,-5068,-29957,-12833,-29958,-12814,-9522,-7017,-7446,-7571,-5791,-2641,-29968,-29971,-5635]} 1. c4 {[%emt 0:00:03]} e6 {[%emt 0:25:09]} 2. g3 {[%emt 0:00:32]} d5 {[%emt 0:00:07]} 3. Nf3 {[%emt 0:00:34]} g6 {[%emt 0:00:10]} 4. Bg2 {[%emt 0:01:00]} Bg7 {[%emt 0:00:04]} 5. d4 {[%emt 0:03:40]} Ne7 {[%emt 0:00:06]} 6. h4 {[%emt 0:00:32]} dxc4 {[%emt 0:00:54]} 7. h5 {[%emt 0:05:50]} Nbc6 {[%emt 0:00:35][%cal Rc6d4]} 8. h6 {[%emt 0:06:35]} ({White should try} 8. Qa4 $11) 8... Bf6 {[%emt 0:02:30][%cal Rc6d4]} 9. Qa4 {[%emt 0:12:03]} O-O {[%emt 0:00:54]} 10. Nc3 {[%emt 0:09:31]} Nxd4 {[%emt 0:22:33]} 11. Nxd4 {[%emt 0:08:50]} Bxd4 {[%emt 0:00:24]} (11... Qxd4 12. Be3 Qd7 13. Qxc4 $11) 12. Qxc4 {[%emt 0:00:26] [#]} e5 $1 {[%emt 0:08:09]} 13. Bg5 {[%emt 0:08:09]} Be6 {[%emt 0:00:12] Prevents Nd5} 14. Qa4 {[%emt 0:01:10]} f6 {[%emt 0:01:16]} 15. Bc1 {[%emt 0:07:43]} c6 {[%emt 0:06:09]} 16. O-O {[%emt 0:07:23]} Nf5 {[%emt 0:01:01]} 17. Ne4 {[%emt 0:01:24]} Bd5 {[%emt 0:09:14]} 18. Qc2 {[%emt 0:13:16]} Qe7 {[%emt 0:03:36]} (18... Bxe4 19. Bxe4 Qc8 (19... Nxg3 $2 20. Qb3+ Kh8 21. Qxg3 $18) 20. e3 $11) (18... Bb6 $19 19. b4 Nd4) 19. Bd2 {[%emt 0:01:16]} (19. a4 $17 {was called for.}) 19... Rad8 {[%emt 0:01:00]} (19... Bxe4 20. Bxe4 Qe6 (20... Nxg3 $2 21. Qb3+ Kh8 22. Qxg3 $18) 21. Kh2 $11) 20. Rfd1 {[%emt 0:01:50]} Bb6 {[%emt 0:02:49] And now ...Nd4 would win.} ({Stronger than} 20... Bxe4 21. Bxe4 Qe6 (21... Nxg3 $2 22. Qb3+ Kh8 23. Qxg3 $18) 22. Bg2 $11) 21. Qa4 {[%emt 0:01:21]} Qe6 {[%emt 0:01:45]} (21... Bxe4 22. Bxe4 Rd4 (22... Nxg3 $2 23. Qb3+ Kh8 24. Qxg3 $18) 23. Qb3+ Kh8 24. Bxf5 gxf5 25. Be3 $15) 22. Kf1 {[%emt 0:05:05]} (22. Ba5 $17) 22... Rd7 $19 {[%emt 0:03:22]} 23. b4 $2 {[%emt 0:02:27]} (23. Ba5) 23... Rfd8 {[%emt 0:00:38] White must now prevent ...Bxe4.} 24. Qc2 {[%emt 0:00:34]} Nd6 {[%emt 0:04:08]} (24... Nd4 $142 25. Qc3 Kh8 (25... Bxa2 $2 26. Rxa2 f5 27. Be1 $17)) 25. Nc5 {[%emt 0:00:53]} Bxc5 {[%emt 0:00:28]} 26. bxc5 {[%emt 0:00:07]} Nc4 {[%emt 0:01:43]} 27. Bb4 {[%emt 0:01:01]} Bxg2+ {[%emt 0:00:54]} 28. Kxg2 {[%emt 0:00:01] [#]} Rxd1 {[%emt 0:00:07]} 29. Rxd1 {[%emt 0:00:02]} Rxd1 {[%emt 0:00:05]} 30. Qxd1 {[%emt 0:00:02]} Qd5+ {[%emt 0:00:04]} 31. Qxd5+ {[%emt 0:00:10]} cxd5 {[%emt 0:00:02][%mdl 4096] Endgame. KB-KN} 32. Kf3 {[%emt 0:00:51]} Kf7 {[%emt 0:00:04]} 33. e4 {[%emt 0:00:42]} Ke6 {[%emt 0:00:30]} 34. g4 {[%emt 0:00:34]} dxe4+ {[%emt 0:00:41]} 35. Kxe4 {[%emt 0:00:07]} f5+ {[%emt 0:00:04]} 36. Kd3 {[%emt 0:00:48]} (36. Kf3 {was worth a try.}) 36... Kd5 {[%emt 0:00:05]} 37. f3 {[%emt 0:01:21]} a5 {[%emt 0:01:19]} 38. c6 {[%emt 0:01:05]} e4+ {[%emt 0:00:47]} (38... axb4 $2 39. cxb7 e4+ 40. fxe4+ fxe4+ 41. Ke2 $18) 39. fxe4+ {[%emt 0:00:18]} fxe4+ {[%emt 0:00:02]} 40. Kc2 {[%emt 0:00:31]} Kxc6 {[%emt 0:00:07]} (40... axb4 $2 {loses.} 41. cxb7 b3+ 42. axb3 Ne3+ 43. Kd2 Nxg4 44. b8=Q $18 (44. b8=B $2 Nxh6 45. Bh2 Nf5 $19)) 41. Be1 {[%emt 0:00:35]} b5 {[%emt 0:00:05]} 42. Kc3 {[%emt 0:00:10]} Kd5 {[%emt 0:00:04]} 43. Bf2 {[%emt 0:00:19]} b4+ {[%emt 0:01:07]} 44. Kb3 {[%emt 0:00:18]} e3 {[%emt 0:00:05]} 45. Bg3 {[%emt 0:01:19]} Kd4 {[%emt 0:00:14] aiming for ...Kd3.} 46. Ka4 {[%emt 0:00:14]} e2 {[%emt 0:01:58] ...Kd3 would now be deadly.} 47. Kb5 {[%emt 0:00:29]} Kc3 {[%emt 0:01:13]} (47... g5 $142 48. Ka6 Ne5 49. Kxa5 Nd3 (49... Nxg4 $2 50. Kxb4 Nxh6 51. Kb5 $19)) 48. Be1+ {[%emt 0:00:17]} Kb2 {[%emt 0:00:37]} 49. a4 {[%emt 0:01:32] White got outplayed after the opening.   Weighted Error Value: White=0.92/Black=0.15 (very precise) .  Mistake:       	White=5     	Black=2      Inaccurate:     	White=4     	Black=2      OK:         	White=3     	Black=16     Best:        	White=1     	---        Strong:       	---       	Black=1} 0-1